fUSD/lending_fUSD_20241010
["ID","MTS","AMOUNT","RATE_DAILY","PERIOD"]
[340107928,1728571832328,-113.0561449,0.00010293,2]
[340107929,1728571832340,-386.9438551,0.00010293,2]
[340107930,1728571832349,-212.82212259,0.00010293,2]
[340107931,1728571832456,-182.32787741,0.00010293,2]
[340107932,1728571832465,-326.24,0.00010329,2]
[340107933,1728571832475,-155.84894538,0.00010338,2]
[340107934,1728571832503,-441.32432862,0.00010338,2]
[340107935,1728571832513,-549.36,0.00010594,2]
[340107936,1728571832522,-499.99,0.00010594,2]
[340107937,1728571832532,-506.69,0.00010594,2]
[340107938,1728571832541,-150.0,0.00010899,2]
[340107939,1728571832551,-207.5,0.00010899,2]
[340107940,1728571832560,-300.0,0.00010899,2]
[340107941,1728571832571,-1224.0833,0.000109,2]
[340107942,1728571832581,-302.13,0.000109,2]
[340107943,1728571832591,-155.94268703,0.000109,2]
[340107944,1728571832600,-251.79585528,0.000109,2]
[340107945,1728571832609,-201.46433562,0.000109,2]
[340107946,1728571832619,-2500.0,0.000109,2]
[340107947,1728571832628,-193.80781535,0.000109,2]
[340107948,1728571832638,-374.28760606,0.000109,2]
[340107949,1728571832647,-500.0,0.00010912,2]
[340107950,1728571832656,-156.92,0.00010959,2]
[340107951,1728571832665,-600.41,0.00010959,2]
[340107952,1728571832675,-345.41,0.00010959,2]
[340107953,1728571832684,-250.0,0.00010959,2]
[340107954,1728571832695,-163.23,0.00010959,2]
[340107955,1728571832704,-500.0,0.00010973,2]
[340107956,1728571832714,-195.9,0.00010999,2]
[340107957,1728571832724,-195.85,0.00010999,2]
[340107958,1728571832734,-18179.90407204,0.00011,2]
[340107959,1728571832746,-640.77475726,0.00011,2]
[340107960,1728571832757,-3440.6158923,0.00011,2]
[340107961,1728571832768,-2563.07524274,0.00011,2]
[340107964,1728571838390,-16719.96207745,0.00011,2]
[340107965,1728571838517,-451.03378972,0.00011,2]
[340107966,1728571838556,-3092.00400293,0.00011,2]
[340107967,1728571838853,-1255.76467905,0.00011,2]
[340107968,1728571838868,-272.34886907,0.00011,2]
[340107969,1728571838880,-28000.0,0.00011,2]
[340107970,1728571838891,-3543.41557183,0.00011,2]
[340107971,1728571838901,-4558.17061438,0.00011,2]
[340107987,1728571840416,-493.39825998,0.00011,2]
[340107998,1728571840548,-11881.23140381,0.00011,2]
[340107999,1728571840585,-1318.21883493,0.00011,2]
[340108016,1728571843376,-250.88661838,0.00010973,2]
[340108018,1728571843388,-249.11338162,0.00010973,2]
[340108019,1728571843400,-7951.48149746,0.00011,2]
[340108020,1728571843414,-7293.93967834,0.00011,2]
[340108021,1728571843532,-327.30108004,0.00011,2]
[340108022,1728571843656,-15138.74697795,0.00011,2]
[340108026,1728571846313,-9659.85,0.00011,2]
[340108027,1728571846526,-6264.3263453,0.00011,2]
[340108029,1728571983274,150.0,0.0001001,2]
[340108030,1728571983297,58.84,0.0001001,2]
[340108031,1728572008691,91.16,9.964e-05,2]
[340108032,1728572008714,208.0,9.964e-05,2]
[340108033,1728572008737,2696.94,9.964e-05,2]
[340108034,1728572033398,344.7,9.964e-05,2]
[340108035,1728572072071,300.0,9.954e-05,2]
[340108036,1728572117831,100.0,9.944e-05,2]
[340108037,1728572117852,71.81,9.944e-05,2]
[340108038,1728572117913,171.81,9.946e-05,2]
[340108039,1728572118151,156.38,9.949e-05,2]
[340108040,1728572118176,15.43,9.949e-05,2]
[340108041,1728572118394,171.81,9.952e-05,2]
[340108042,1728572118695,171.81,9.954e-05,2]
[340108043,1728572118940,40.95,9.957e-05,2]
[340108044,1728572118963,130.86,9.957e-05,2]
[340108045,1728572119339,171.81,9.959e-05,2]
[340108046,1728572119613,97.33,9.962e-05,2]
[340108047,1728572119636,74.48,9.962e-05,2]
[340108048,1728572119845,171.81,9.965e-05,2]
[340108049,1728572120090,153.71,9.967e-05,2]
[340108050,1728572120113,18.1,9.967e-05,2]
[340108051,1728572120318,171.81,9.97e-05,2]
[340108052,1728572120586,171.81,9.973e-05,2]
[340108053,1728572120833,38.28,9.975e-05,2]
[340108054,1728572120858,133.53,9.975e-05,2]
[340108055,1728572121061,171.81,9.978e-05,2]
[340108056,1728572121300,94.66,9.981e-05,2]
[340108057,1728572121324,77.15,9.981e-05,2]
[340108058,1728572121525,171.81,9.983e-05,2]
[340108059,1728572121786,151.04,9.986e-05,2]
[340108060,1728572121813,20.77,9.986e-05,2]
[340108061,1728572122235,171.81,9.988e-05,2]
[340108062,1728572122467,171.81,9.991e-05,2]
[340108063,1728572122759,35.61,9.994e-05,2]
[340108064,1728572122783,136.2,9.994e-05,2]
[340108065,1728572128852,263.8,9.949e-05,2]
[340108066,1728572128877,64.2,9.949e-05,2]
[340108071,1728572331717,335.8,8.219e-05,2]
[340108072,1728572331745,276.0,8.219e-05,2]
[340108073,1728572353788,178.23,9.944e-05,2]
[340108077,1728572391614,250.0,9.825e-05,2]
[340108079,1728572433614,250.0,9.944e-05,2]
[340108081,1728572576231,172.35,9.944e-05,2]
[340108088,1728572650946,737.6,9.941e-05,2]
[340108089,1728572681455,164.7,9.947e-05,2]
[340108093,1728572873154,2059.52,9.947e-05,2]
[340108094,1728572916402,150.0,9.954e-05,2]
[340108098,1728572928010,150.0,8.219e-05,2]
[340108099,1728572928031,150.0,8.219e-05,2]
[340108100,1728572928052,150.0,8.219e-05,2]
[340108101,1728572928075,165.16,8.219e-05,2]
[340108102,1728572948848,150.0,9.954e-05,2]
[340108103,1728572948872,150.0,9.954e-05,2]
[340108104,1728572948893,150.0,9.954e-05,2]
[340108105,1728572948913,0.15,9.954e-05,2]
[340108198,1728572979556,149.85,9.947e-05,2]
[340108199,1728572979579,100.15,9.947e-05,2]
[340108200,1728573021813,99.85,9.945e-05,2]
[340108201,1728573021836,57.28,9.945e-05,2]
[340108210,1728573031526,-588.510515,0.0001045,2]
[340108211,1728573031536,-402.64497673,0.0001045,2]
[340108212,1728573031544,-220.29474827,0.00010473,2]
[340108213,1728573031556,-394.86525173,0.00010473,2]
[340108214,1728573031566,-1101.49395539,0.0001078,2]
[340108215,1728573031575,-150.0,0.00010786,2]
[340108216,1728573031585,-150.0,0.00010799,2]
[340108217,1728573031594,-150.0,0.00010809,2]
[340108218,1728573031603,-150.0,0.00010817,2]
[340108219,1728573031613,-150.0,0.00010826,2]
[340108220,1728573031622,-499.99,0.00010826,2]
[340108221,1728573031631,-150.0,0.0001085,2]
[340108222,1728573031641,-150.0,0.00010895,2]
[340108223,1728573031650,-150.0,0.00010899,2]
[340108224,1728573031659,-150.0,0.00010899,2]
[340108225,1728573031669,-300.0,0.00010899,2]
[340108226,1728573031679,-1000.0,0.000109,2]
[340108227,1728573031688,-24442.0338,0.000109,2]
[340108228,1728573031697,-1422.4903,0.000109,2]
[340108229,1728573031708,-1636.9819,0.000109,2]
[340108230,1728573031717,-243.66015708,0.000109,2]
[340108231,1728573031727,-150.0,0.000109,2]
[340108232,1728573031736,-7413.07407477,0.000109,2]
[340108233,1728573031745,-184.71542486,0.000109,2]
[340108234,1728573031754,-249.5250707,0.000109,2]
[340108235,1728573031763,-500.0,0.00010912,2]
[340108236,1728573031773,-150.0,0.00010915,2]
[340108238,1728573031782,-150.0,0.00010917,2]
[340108240,1728573031791,-150.0,0.00010931,2]
[340108241,1728573031800,-150.0,0.00010934,2]
[340108242,1728573031809,-150.0,0.00010939,2]
[340108243,1728573031818,-150.0,0.00010947,2]
[340108244,1728573031827,-158.19,0.00010959,2]
[340108245,1728573031837,-1081.92,0.00010959,2]
[340108246,1728573031846,-169.93,0.00010959,2]
[340108247,1728573031855,-250.0,0.00010959,2]
[340108248,1728573031864,-241.266,0.00010959,2]
[340108249,1728573031874,-150.0,0.00010961,2]
[340108250,1728573031883,-150.0,0.00010961,2]
[340108251,1728573031892,-500.0,0.00010973,2]
[340108252,1728573031901,-214.34015758,0.00010979,2]
[340108253,1728573031911,-150.0,0.00010983,2]
[340108254,1728573031920,-150.0,0.00010987,2]
[340108255,1728573031929,-150.0,0.00010992,2]
[340108256,1728573031938,-3459.0966962,0.00010998,2]
[340108257,1728573031947,-193.8295338,0.00010999,2]
[340108258,1728573031958,-233.52777272,0.00010999,2]
[340108259,1728573031967,-153910.99299209,0.00011,2]
[340108260,1728573031977,-372539.63199603,0.00011,2]
[340108261,1728573031987,-611856.28262671,0.00011,2]
[340108262,1728573031999,-902.99942409,0.00011,2]
[340108263,1728573032010,-1308.0,0.00011,2]
[340108264,1728573032021,-1083.58880819,0.00011,2]
[340108265,1728573032032,-576.02,0.00011,2]
[340108267,1728573037670,-362.78211077,0.00011,2]
[340108268,1728573037681,-324.99651763,0.00011,2]
[340108269,1728573037693,-987.54270914,0.00011,2]
[340108270,1728573037706,-11676.78754871,0.00011,2]
[340108271,1728573037716,-2554.34123814,0.00011,2]
[340108272,1728573037728,-6753.51311033,0.00011,2]
[340108273,1728573037738,-688.5,0.00011,2]
[340108274,1728573037749,-1629.83238255,0.00011,2]
[340108275,1728573037760,-31656.84344985,0.00011,2]
[340108276,1728573037771,-4729.0105623,0.00011,2]
[340108277,1728573037782,-1082.14649661,0.00011,2]
[340108278,1728573037793,-5355.07790151,0.00011,2]
[340108279,1728573037804,-1522.63335757,0.00011,2]
[340108280,1728573037819,-1145.19149778,0.00011,2]
[340108281,1728573037830,-1289.55480588,0.00011,2]
[340108282,1728573037841,-2259.15804838,0.00011,2]
[340108283,1728573037852,-485.28526725,0.00011,2]
[340108284,1728573037863,-460.89263148,0.00011,2]
[340108285,1728573037880,-3121.37371085,0.00011,2]
[340108311,1728573039538,-688.78320832,0.00011,2]
[340108312,1728573039549,-1081.38949998,0.00011,2]
[340108313,1728573039668,-93995.86695843,0.00011,2]
[340108314,1728573039798,-2809.89847193,0.00011,2]
[340108315,1728573039810,-521.59343028,0.00011,2]
[340108316,1728573039822,-453.16590618,0.00011,2]
[340108323,1728573042655,-2500.0,0.000109,2]
[340108324,1728573042666,-77453.18979455,0.00011,2]
[340108325,1728573042781,-1597.49534063,0.00011,2]
[340108326,1728573042815,-132466.63409,0.00011,2]
[340108333,1728573045513,-816.9,0.00010959,2]
[340108334,1728573045524,-1012.08130557,0.00011,2]
[340108335,1728573045547,-911.235,0.00011,2]
[340108336,1728573045559,-130531.87940769,0.00011,2]
[340108338,1728573045967,-328.465,0.00011,2]
[340108339,1728573045978,-458.52,0.00011,2]
[340108340,1728573045997,-641.337702,0.00011,2]
[340108341,1728573066908,11516.0,0.000104,5]
[340108343,1728573067144,11516.0,0.000102,3]
[340108344,1728573067395,92.72,0.0001,2]
[340108345,1728573067416,150.0,0.0001,2]
[340108346,1728573067437,270.86407042,0.0001,2]
[340108347,1728573067460,156.83287042,0.0001,2]
[340108348,1728573067485,25929.58305916,0.0001,2]
[340108349,1728573210902,150.0,0.00010142,2]
[340108350,1728573240269,150.0,0.00010156,2]
[340108351,1728573240290,152.24138874,0.00010156,2]
[340108352,1728573240310,107.67861126,0.00010156,2]
[340108353,1728573252907,57.50425916,0.00010151,2]
[340108354,1728573252928,114.84574084,0.00010151,2]
[340108355,1728573348199,35.15425916,0.00010197,2]
[340108356,1728573348220,243.28574084,0.00010197,2]
[340108357,1728573377768,0.23322468,0.00010152,2]
[340108358,1728573377790,181.86,0.00010152,2]
[340108359,1728573377810,267.64287042,0.00010152,2]
[340108360,1728573377836,21370.8639049,0.00010152,2]
[340108362,1728573477485,2717.36,0.00010056,2]
[340108363,1728573482720,666.56,8.219e-05,2]
[340108364,1728573508474,250.0,9.964e-05,2]
[340108365,1728573552161,1888.15,9.983e-05,2]
[340108366,1728573566923,23890.0,9.961e-05,2]
[340108367,1728573621915,170.89,9.975e-05,2]
[340108368,1728573631397,600.0,9.994e-05,2]
[340108369,1728573643798,227.7,9.989e-05,2]
[340108370,1728573717456,250.0,9.989e-05,2]
[340108371,1728573737166,206.84,9.985e-05,2]
[340108372,1728573821247,672.06,9.963e-05,2]
[340108373,1728573925680,150.0,9.888e-05,2]
[340108377,1728573966751,150.0,8.219e-05,2]
[340108378,1728573966772,150.1088,8.219e-05,2]
[340108379,1728573966798,333.1212,8.219e-05,2]
[340108380,1728574000001,250.0,9.934e-05,2]
[340108393,1728574055679,300.1088,0.00010148,2]
[340108394,1728574077393,1869.63986873,0.0001,2]
[340108399,1728574138319,178.23,9.929e-05,2]
[340108422,1728574165296,169.37,9.925e-05,2]
[340108432,1728574204289,559.09,0.00010877,14]
[340108443,1728574231625,-476.3412,0.00010248,2]
[340108444,1728574231636,-208.0,0.000103,2]
[340108445,1728574231647,-633.23,0.00010473,2]
[340108446,1728574231657,-208.0,0.0001052,2]
[340108447,1728574231668,-300.0,0.000106,2]
[340108448,1728574231678,-300.0,0.000106,2]
[340108450,1728574231688,-14278.45302153,0.000106,2]
[340108452,1728574231699,-1058.39673181,0.000106,2]
[340108454,1728574231712,-695.96577847,0.000106,2]
[340108455,1728574231815,-5163.29248996,0.000106,2]
[340108456,1728574231826,-5142.00847143,0.00010604,2]
[340108457,1728574231837,-208.0,0.0001075,2]
[340108458,1728574231850,-150.0,0.00010799,2]
[340108459,1728574231860,-150.0,0.000108,2]
[340108460,1728574231871,-755.4,0.000108,2]
[340108461,1728574231882,-150.0,0.000108,2]
[340108462,1728574231892,-359.0,0.000108,2]
[340108463,1728574231904,-423.89,0.000108,2]
[340108464,1728574231916,-429.35,0.000108,2]
[340108465,1728574231927,-429.35,0.000108,2]
[340108467,1728574231939,-359.0,0.000108,2]
[340108469,1728574231951,-755.4,0.000108,2]
[340108471,1728574231961,-423.89,0.000108,2]
[340108472,1728574231971,-366.15,0.000108,2]
[340108473,1728574231980,-1019.96,0.000108,2]
[340108474,1728574231990,-429.35,0.000108,2]
[340108475,1728574232000,-194.31,0.000108,2]
[340108476,1728574232010,-429.35,0.000108,2]
[340108477,1728574232021,-150.0,0.00010854,2]
[340108478,1728574232032,-299.99,0.00010873,2]
[340108479,1728574232044,-500.0,0.00010873,2]
[340108480,1728574232055,-499.99,0.00010873,2]
[340108481,1728574232066,-7500.0,0.00010876,2]
[340108482,1728574232077,-27180.17223254,0.0001088,2]
[340108483,1728574232086,-11729.19226693,0.0001089,2]
[340108484,1728574232098,-262781.31384068,0.0001089,2]
[340108485,1728574232109,-168.43382,0.00010891,2]
[340108486,1728574232120,-435.52,0.000109,2]
[340108487,1728574232131,-755.4,0.000109,2]
[340108488,1728574232142,-255.13,0.000109,2]
[340108489,1728574232153,-423.89,0.000109,2]
[340108490,1728574232164,-359.0,0.000109,2]
[340108491,1728574232174,-157.05,0.000109,2]
[340108492,1728574232185,-300.93,0.000109,2]
[340108493,1728574232194,-429.35,0.000109,2]
[340108494,1728574232204,-755.4,0.000109,2]
[340108495,1728574232216,-359.0,0.000109,2]
[340108496,1728574232227,-150.0,0.000109,2]
[340108497,1728574232238,-150.0,0.000109,2]
[340108498,1728574232250,-423.89,0.000109,2]
[340108499,1728574232259,-150.0,0.000109,2]
[340108500,1728574232269,-423.89,0.000109,2]
[340108501,1728574232280,-755.4,0.000109,2]
[340108502,1728574232290,-150.0,0.000109,2]
[340108503,1728574232300,-359.0,0.000109,2]
[340108504,1728574232310,-429.35,0.000109,2]
[340108505,1728574232320,-429.35,0.000109,2]
[340108506,1728574232331,-228.70690396,0.000109,2]
[340108507,1728574232341,-429.35,0.000109,2]
[340108508,1728574232355,-154.18,0.00010906,2]
[340108509,1728574232370,-500.0,0.00010912,2]
[340108510,1728574232380,-150.0,0.00010921,2]
[340108511,1728574232390,-500.0,0.00010958,2]
[340108512,1728574232400,-500.0,0.00010958,2]
[340108513,1728574232411,-500.0,0.00010958,2]
[340108514,1728574232422,-260.3629558,0.00010958,2]
[340108515,1728574232432,-165.34,0.00010959,2]
[340108516,1728574232442,-156.92,0.00010959,2]
[340108517,1728574232452,-250.0,0.00010959,2]
[340108518,1728574232462,-865.53,0.00010959,2]
[340108519,1728574232472,-193.012,0.00010959,2]
[340108520,1728574232482,-208.0,0.0001097,2]
[340108521,1728574232492,-500.0,0.00010975,2]
[340108522,1728574232502,-500.0,0.00010975,2]
[340108523,1728574232511,-618.53954048,0.00010975,2]
[340108524,1728574232521,-500.0,0.00010975,2]
[340108525,1728574232531,-500.0,0.00010975,2]
[340108526,1728574232541,-142956.1528951,0.00010976,2]
[340108527,1728574232555,-689.30241408,0.00010976,2]
[340108529,1728574237898,-508.29603082,0.00010976,2]
[340108530,1728574238181,-976.19437236,0.00010976,2]
[340108531,1728574238195,-280.7030062,0.00010976,2]
[340108533,1728574238376,-3001.39238006,0.00010976,2]
[340108538,1728574239882,-410.79585062,0.00010899,2]
[340108539,1728574240120,-657.64285161,0.00010976,2]
[340108557,1728574242785,-184.71542486,0.000109,2]
[340108559,1728574242796,-421.71457514,0.00010976,2]
[340108576,1728574245937,-410.79585061,0.00010899,2]
[340108577,1728574245946,-250.0,0.00010936,2]
[340108578,1728574245955,-240.54237276,0.00010976,2]
[340108579,1728574245966,-10042.11061774,0.00010976,2]
[340108620,1728574586665,250.0,0.0001022,2]
[340108621,1728574884113,194.77712958,0.00010228,2]
[340108622,1728574884135,264.61,0.00010228,2]
[340108623,1728574884160,23430.61287042,0.00010228,2]
[340108624,1728574996735,150.0,0.00010179,2]
[340108625,1728574996756,114.61,0.00010179,2]
[340108626,1728575088347,145.54,0.00010182,2]
[340108627,1728575088374,104.46,0.00010182,2]
[340108628,1728575133106,150.0,8.222e-05,2]
[340108629,1728575133128,150.0,8.222e-05,2]
[340108630,1728575133150,150.0,8.222e-05,2]
[340108631,1728575133173,150.0,8.222e-05,2]
[340108632,1728575133196,57.74,8.222e-05,2]
[340108656,1728575278955,150.0,0.00010067,2]
[340108657,1728575278976,100.0,0.00010067,2]
[340108658,1728575280690,-225.14,0.00010244,2]
[340108716,1728575431998,-303.4456781,0.00010244,2]
[340108717,1728575432009,-9.0643219,0.00010244,2]
[340108718,1728575432019,-218.74,0.00010255,2]
[340108719,1728575432029,-215.41,0.00010278,2]
[340108720,1728575432038,-157.13,0.00010328,2]
[340108721,1728575432047,-3872.8351,0.00010336,2]
[340108722,1728575432056,-462.35,0.00010436,2]
[340108723,1728575432066,-657.74,0.00010486,2]
[340108724,1728575432075,-6983.52946037,0.000109,2]
[340108725,1728575432084,-150.0,0.00010932,2]
[340108726,1728575432093,-163.02,0.00010959,2]
[340108727,1728575432103,-266.49,0.00010959,2]
[340108728,1728575432111,-250.0,0.00010959,2]
[340108729,1728575432121,-150.28,0.00010959,2]
[340108730,1728575432130,-692.42,0.00010959,2]
[340108731,1728575432139,-154.41,0.00010959,2]
[340108732,1728575432149,-500.0,0.00010973,2]
[340108733,1728575432158,-500.0,0.00010973,2]
[340108734,1728575432167,-150.0,0.00010975,2]
[340108735,1728575432177,-200.0,0.00010976,2]
[340108736,1728575432187,-54889.61594074,0.00010976,2]
[340108737,1728575432202,-295.6043219,0.00010976,2]
[340108750,1728575438056,-9026.83705678,0.00010976,2]
[340108751,1728575438066,-189.6347253,0.00010997,2]
[340108752,1728575438076,-449.0,0.00010998,2]
[340108753,1728575438086,-811.0,0.00010998,2]
[340108754,1728575438095,-229.65833825,0.00010998,2]
[340108755,1728575438114,-1065.16966175,0.00010998,2]
[340108756,1728575438123,-2933.51493825,0.00010998,2]
[340108759,1728575438459,-419.48506175,0.00010998,2]
[340108761,1728575438469,-754.50200639,0.00010998,2]
[340108763,1728575438481,-842.99399361,0.00010998,2]
[340108765,1728575438491,-150.0,0.00010998,2]
[340108766,1728575438500,-150.0,0.00010998,2]
[340108768,1728575438510,-922.89365366,0.00010998,2]
[340108770,1728575438522,-609.42282745,0.00010998,2]
[340108781,1728575439865,-520.48261634,0.00010998,2]
[340108782,1728575439919,-963.49984159,0.00010998,2]
[340108783,1728575439930,-3209.3632743,0.00010998,2]
[340108784,1728575440029,-5137.58278666,0.00010998,2]
[340108785,1728575440038,-150.0,0.00010998,2]
[340108786,1728575440047,-1082.0,0.00010998,2]
[340108787,1728575440057,-933.5291511,0.00010998,2]
[340108788,1728575440066,-277.0625193,0.00010998,2]
[340108789,1728575440076,-1386.3810934,0.00010998,2]
[340108790,1728575440085,-500.0,0.00010999,2]
[340108791,1728575440095,-197.05395209,0.00010999,2]
[340108792,1728575440104,-500.0,0.00010999,2]
[340108793,1728575440113,-500.0,0.00010999,2]
[340108794,1728575440122,-500.0,0.00010999,2]
[340108795,1728575440132,-406.18346347,0.00010999,2]
[340108796,1728575440141,-564.0,0.00011,2]
[340108797,1728575440150,-8276.42434436,0.00011,2]
[340108798,1728575440163,-82303.99984372,0.00011,2]
[340108799,1728575440191,-15720.71741907,0.00011,2]
[340108829,1728575442943,-52218.75208573,0.00011,2]
[340108830,1728575442952,-5747.28218422,0.00011,2]
[340108831,1728575443048,-1144.99029975,0.00011,2]
[340108832,1728575443270,-30052.878295,0.00011,2]
[340108835,1728575445882,-151.102,0.00011,2]
[340108836,1728575445892,-2966.398,0.00011,2]
[340108837,1728575445937,-393.461756,0.00011,2]
[340108839,1728575638143,50.0,8.219e-05,2]
[340108840,1728575638169,150.0,8.219e-05,2]
[340108841,1728575638197,465.56,8.219e-05,2]
[340108864,1728575761252,250.0,9.952e-05,2]
[340108866,1728575826487,155.15,9.956e-05,2]
[340108867,1728575910344,208.84,9.952e-05,2]
[340108868,1728575969362,774.46,9.954e-05,2]
[340108869,1728576024930,3063.46,9.948e-05,2]
[340108870,1728576038872,264.61,9.951e-05,2]
[340108871,1728576040631,430.12,9.951e-05,2]
[340108872,1728576090339,169.36027998,0.00010848,4]
[340108873,1728576095237,169.36027996,0.00010858,4]
[340108874,1728576100282,169.36027996,0.00010869,4]
[340108875,1728576105207,169.36027996,0.00010879,4]
[340108876,1728576110401,169.36027996,0.0001089,4]
[340108877,1728576115214,169.36027996,0.000109,4]
[340108878,1728576128624,1037.02,8.219e-05,2]
[340108879,1728576268788,250.0,9.948e-05,2]
[340108890,1728576491371,157.13,9.944e-05,2]
[340109007,1728576632038,-500.0,0.00010265,2]
[340109008,1728576632047,-522.81863614,0.00010265,2]
[340109009,1728576632056,-1037.02,0.00010473,2]
[340109010,1728576632066,-751.445,0.00010895,2]
[340109011,1728576632076,-28.71636416,0.00010899,2]
[340109012,1728576632087,-121.28363584,0.00010899,2]
[340109013,1728576632096,-300.0,0.00010899,2]
[340109014,1728576632106,-2417.11,0.00010899,2]
[340109015,1728576632115,-282.5287,0.000109,2]
[340109016,1728576632125,-751.5692392,0.000109,2]
[340109017,1728576632135,-2950.17132551,0.000109,2]
[340109018,1728576632147,-324.2343219,0.000109,2]
[340109019,1728576632159,-4809.60000002,0.000109,2]
[340109020,1728576632198,-5225.77991225,0.000109,2]
[340109021,1728576632207,-314.88001939,0.000109,2]
[340109022,1728576632217,-871.5381625,0.000109,2]
[340109023,1728576632227,-98.70048686,0.00010902,2]
[340109024,1728576632304,-2318.40951314,0.00010902,2]
[340109025,1728576632314,-2417.11,0.00010905,2]
[340109026,1728576632323,-2417.11,0.00010908,2]
[340109027,1728576632333,-499.99,0.00010908,2]
[340109028,1728576632342,-1293.39795286,0.00010911,2]
[340109032,1728576638238,-1123.71204714,0.00010911,2]
[340109033,1728576638247,-2417.11,0.00010914,2]
[340109034,1728576638256,-518.50315132,0.00010917,2]
[340109035,1728576638267,-1898.60684868,0.00010917,2]
[340109036,1728576638277,-2417.11,0.00010919,2]
[340109037,1728576638286,-2417.11,0.00010922,2]
[340109038,1728576638294,-2417.11,0.00010925,2]
[340109039,1728576638304,-2417.11,0.00010928,2]
[340109040,1728576638312,-2417.11,0.00010931,2]
[340109041,1728576638321,-2417.11,0.00010934,2]
[340109042,1728576638331,-2417.11,0.00010937,2]
[340109043,1728576638340,-2417.11,0.0001094,2]
[340109044,1728576638349,-2417.11,0.00010942,2]
[340109045,1728576638361,-2417.11,0.00010945,2]
[340109046,1728576638372,-2417.11,0.00010948,2]
[340109047,1728576638387,-2417.11,0.00010951,2]
[340109048,1728576638396,-2218.68609322,0.00010954,2]
[340109049,1728576638407,-198.42390678,0.00010954,2]
[340109050,1728576638416,-160.15,0.00010959,2]
[340109051,1728576638425,-1681.11,0.00010959,2]
[340109052,1728576638434,-162.75,0.00010959,2]
[340109053,1728576638443,-553.93,0.00010959,2]
[340109055,1728576638451,-250.0,0.00010959,2]
[340109056,1728576638461,-155.891,0.00010959,2]
[340109057,1728576638471,-564.8212458,0.00010973,2]
[340109058,1728576638480,-181.88076905,0.00010973,2]
[340109059,1728576638489,-153.0,0.00010996,2]
[340109060,1728576638498,-4990.9908454,0.00010998,2]
[340109061,1728576638507,-23277.5253333,0.00010998,2]
[340109062,1728576638516,-2063.5173902,0.00010998,2]
[340109063,1728576638525,-500.0,0.00010999,2]
[340109064,1728576638534,-500.0,0.00010999,2]
[340109065,1728576638543,-500.0,0.00010999,2]
[340109067,1728576638552,-313.41581114,0.00010999,2]
[340109069,1728576638561,-500.0,0.00010999,2]
[340109071,1728576638570,-500.87740086,0.00010999,2]
[340109073,1728576638579,-522.0,0.00011,2]
[340109075,1728576638588,-53900.68724046,0.00011,2]
[340109077,1728576638599,-2252.52733061,0.00011,2]
[340109079,1728576638614,-19453.41639563,0.00011,2]
[340109081,1728576638629,-1599.21665465,0.00011,2]
[340109083,1728576638639,-544.61761896,0.00011,2]
[340109084,1728576638650,-445.42957939,0.00011,2]
[340109086,1728576638661,-599.375,0.00011,2]
[340109088,1728576638672,-603.15285,0.00011,2]
[340109091,1728576638710,655.9,0.00010046,2]
[340109092,1728576638722,-410.82807031,0.00011,2]